[Event "Early-Titled-Tuesday-Blitz-March-12-2024"]
[Site "Chess.com"]
[Date "2024.03.12"]
[Round "5"]
[White "Meri-Arabidze"]
[Black "ajedrezsinlimites"]
[Result "0-1"]
[WhiteElo "2708"]
[BlackElo "2537"]
[TimeControl "180+1"]
[EndTime "8:55:24 PDT"]
[Termination "ajedrezsinlimites won on time"]

1. d4 {[%clk 0:03:00.9]} 1... Nf6 {[%clk 0:02:45]} 2. c4 {[%clk 0:03:01.4]} 2...
e6 {[%clk 0:02:44.9]} 3. Nc3 {[%clk 0:03:02]} 3... Bb4 {[%clk 0:02:43.6]} 4. f3
{[%clk 0:03:02.6]} 4... d5 {[%clk 0:02:41.1]} 5. a3 {[%clk 0:03:02.9]} 5...
Bxc3+ {[%clk 0:02:40.3]} 6. bxc3 {[%clk 0:03:03.8]} 6... c5 {[%clk 0:02:40.8]}
7. cxd5 {[%clk 0:03:04.2]} 7... exd5 {[%clk 0:02:40]} 8. e3 {[%clk 0:03:04.1]}
8... c4 {[%clk 0:02:40.7]} 9. Ne2 {[%clk 0:03:02.5]} 9... O-O {[%clk 0:02:39.1]}
10. g4 {[%clk 0:02:59.5]} 10... b5 {[%clk 0:02:36]} 11. Bg2 {[%clk 0:02:59]}
11... a5 {[%clk 0:02:35.1]} 12. O-O {[%clk 0:02:58.6]} 12... Ra6 {[%clk
0:02:25.2]} 13. Nf4 {[%clk 0:02:54.2]} 13... b4 {[%clk 0:02:16]} 14. axb4 {[%clk
0:02:35.6]} 14... axb4 {[%clk 0:02:16.9]} 15. Rxa6 {[%clk 0:02:35.7]} 15... Nxa6
{[%clk 0:02:17.8]} 16. cxb4 {[%clk 0:02:36.1]} 16... Nxb4 {[%clk 0:02:11.7]} 17.
Qa4 {[%clk 0:02:32.2]} 17... Nd3 {[%clk 0:02:07.3]} 18. Nxd3 {[%clk 0:02:30.8]}
18... cxd3 {[%clk 0:02:08.2]} 19. Qa3 {[%clk 0:02:23.3]} 19... h5 {[%clk
0:01:56.2]} 20. g5 {[%clk 0:02:20.6]} 20... Ne8 {[%clk 0:01:56.4]} 21. h4 {[%clk
0:02:17.3]} 21... Bf5 {[%clk 0:01:54.5]} 22. Qc5 {[%clk 0:01:58.4]} 22... Nc7
{[%clk 0:01:53.7]} 23. e4 {[%clk 0:01:48]} 23... dxe4 {[%clk 0:01:35.9]} 24.
fxe4 {[%clk 0:01:36.5]} 24... Bg4 {[%clk 0:01:35.6]} 25. d5 {[%clk 0:01:21.9]}
25... Be2 {[%clk 0:01:17.5]} 26. Rf2 {[%clk 0:01:22]} 26... f6 {[%clk
0:01:08.6]} 27. g6 {[%clk 0:01:09.4]} 27... Na6 {[%clk 0:01:02.6]} 28. Qd4
{[%clk 0:00:58.8]} 28... Qa5 {[%clk 0:01:02.4]} 29. Be3 {[%clk 0:00:45.8]} 29...
Nb4 {[%clk 0:00:52.9]} 30. d6 {[%clk 0:00:20.2]} 30... Nc2 {[%clk 0:00:50]} 31.
Qc4+ {[%clk 0:00:20.4]} 31... Kh8 {[%clk 0:00:49.5]} 32. Bc5 {[%clk 0:00:07.4]}
32... Qe1+ {[%clk 0:00:38.9]} 33. Kh2 {[%clk 0:00:07.5]} 33... d2 {[%clk
0:00:34.9]} 34. Rxe2 {[%clk 0:00:06.7]} 34... Qxh4+ {[%clk 0:00:31]} 35. Bh3
{[%clk 0:00:07.1]} 35... Qf4+ {[%clk 0:00:28.4]} 36. Kg2 {[%clk 0:00:05.7]}
36... d1=Q {[%clk 0:00:22.9]} 37. Rf2 {[%clk 0:00:03.5]} 37... Ne3+ {[%clk
0:00:18.6]} 38. Bxe3 {[%clk 0:00:03]} 38... Qxe3 {[%clk 0:00:19.2]} 39. d7
{[%clk 0:00:02.6]} 39... Qdd4 {[%clk 0:00:17.1]} 40. Qxd4 {[%clk 0:00:01.3]}
40... Qxd4 {[%clk 0:00:17]} 0-1

[Event "Early-Titled-Tuesday-Blitz-March-12-2024"]
[Site "Chess.com"]
[Date "2024.03.12"]
[Round "5"]
[White "Chessdude1987"]
[Black "Smoking_Crow"]
[Result "0-1"]
[WhiteElo "2395"]
[BlackElo "2573"]
[TimeControl "180+1"]
[EndTime "8:55:24 PDT"]
[Termination "Smoking_Crow won on time"]

1. e4 {[%clk 0:03:00.9]} 1... c6 {[%clk 0:02:59.5]} 2. Nf3 {[%clk 0:02:58.8]}
2... d5 {[%clk 0:03:00.4]} 3. Nc3 {[%clk 0:02:58.9]} 3... Bg4 {[%clk 0:02:56.5]}
4. Be2 {[%clk 0:02:58.7]} 4... e6 {[%clk 0:02:50.9]} 5. Ne5 {[%clk 0:02:58.1]}
5... Bxe2 {[%clk 0:02:49.5]} 6. Qxe2 {[%clk 0:02:58.1]} 6... Nd7 {[%clk
0:02:41.4]} 7. Nxd7 {[%clk 0:02:56]} 7... Qxd7 {[%clk 0:02:40]} 8. d3 {[%clk
0:02:55.7]} 8... d4 {[%clk 0:02:30.5]} 9. Nd1 {[%clk 0:02:55.3]} 9... g6 {[%clk
0:02:30.3]} 10. O-O {[%clk 0:02:52.8]} 10... Bg7 {[%clk 0:02:30.2]} 11. f4
{[%clk 0:02:52.6]} 11... Ne7 {[%clk 0:02:29.9]} 12. f5 {[%clk 0:02:21.2]} 12...
gxf5 {[%clk 0:02:25.1]} 13. exf5 {[%clk 0:02:21]} 13... exf5 {[%clk 0:02:23.3]}
14. Bg5 {[%clk 0:02:16.2]} 14... f6 {[%clk 0:02:21.5]} 15. Bf4 {[%clk
0:01:54.3]} 15... O-O-O {[%clk 0:02:13.2]} 16. Nf2 {[%clk 0:01:51.5]} 16... Nd5
{[%clk 0:02:09.8]} 17. Nh3 {[%clk 0:01:50.2]} 17... Rhe8 {[%clk 0:02:05.7]} 18.
Qf2 {[%clk 0:01:49.6]} 18... Bf8 {[%clk 0:01:39.7]} 19. Rae1 {[%clk 0:01:25.6]}
19... Ne3 {[%clk 0:01:32.5]} 20. Kh1 {[%clk 0:01:24.7]} 20... Nxf1 {[%clk
0:01:28.6]} 21. Rxf1 {[%clk 0:01:22.8]} 21... Bd6 {[%clk 0:01:24.5]} 22. Qxd4
{[%clk 0:01:20.9]} 22... Bxf4 {[%clk 0:01:24.2]} 23. Qxf4 {[%clk 0:01:20.7]}
23... Re5 {[%clk 0:01:24.1]} 24. Qh4 {[%clk 0:01:00.1]} 24... Rde8 {[%clk
0:01:15.4]} 25. Nf4 {[%clk 0:00:58.2]} 25... Qd6 {[%clk 0:01:03.9]} 26. h3
{[%clk 0:00:27.2]} 26... Qb4 {[%clk 0:00:56.2]} 27. Qxh7 {[%clk 0:00:22.3]}
27... Qxb2 {[%clk 0:00:48.9]} 28. c4 {[%clk 0:00:11.4]} 28... Kb8 {[%clk
0:00:48.4]} 29. Qd7 {[%clk 0:00:05.1]} 29... Qb6 {[%clk 0:00:38.9]} 30. Qd6+
{[%clk 0:00:04.6]} 30... Qc7 {[%clk 0:00:39.1]} 31. Qxc7+ {[%clk 0:00:05]} 31...
Kxc7 {[%clk 0:00:39.2]} 32. Kh2 {[%clk 0:00:04.9]} 32... Kd6 {[%clk 0:00:34.5]}
33. h4 {[%clk 0:00:04]} 33... Kc5 {[%clk 0:00:31.7]} 34. Rf3 {[%clk 0:00:01]}
34... Kd4 {[%clk 0:00:31.7]} 35. h5 {[%clk 0:00:01.2]} 35... Re3 {[%clk
0:00:29.6]} 36. Rf2 {[%clk 0:00:01.5]} 36... Rh8 {[%clk 0:00:26.3]} 37. g3
{[%clk 0:00:01.9]} 37... a5 {[%clk 0:00:25.2]} 38. Kg2 {[%clk 0:00:02.2]} 38...
b5 {[%clk 0:00:25.3]} 39. cxb5 {[%clk 0:00:01.3]} 39... cxb5 {[%clk 0:00:25.6]}
40. Rb2 {[%clk 0:00:01.2]} 40... b4 {[%clk 0:00:26.1]} 41. a3 {[%clk 0:00:01.3]}
41... Kc3 {[%clk 0:00:25.8]} 0-1

[Event "Early-Titled-Tuesday-Blitz-March-12-2024"]
[Site "Chess.com"]
[Date "2024.03.12"]
[Round "5"]
[White "jk13"]
[Black "ActorXu"]
[Result "0-1"]
[WhiteElo "2671"]
[BlackElo "2870"]
[TimeControl "180+1"]
[EndTime "8:55:26 PDT"]
[Termination "ActorXu won by resignation"]

1. e4 {[%clk 0:03:00.9]} 1... c5 {[%clk 0:02:59.8]} 2. c3 {[%clk 0:03:00.5]}
2... Nf6 {[%clk 0:02:58.1]} 3. e5 {[%clk 0:03:00.9]} 3... Nd5 {[%clk 0:02:58.8]}
4. Bc4 {[%clk 0:03:01.7]} 4... Nb6 {[%clk 0:02:56.1]} 5. Bb3 {[%clk 0:03:02]}
5... c4 {[%clk 0:02:50.5]} 6. Bc2 {[%clk 0:03:01.8]} 6... Nc6 {[%clk 0:02:50.8]}
7. Nf3 {[%clk 0:03:02.3]} 7... d6 {[%clk 0:02:49]} 8. exd6 {[%clk 0:03:03.2]}
8... e5 {[%clk 0:02:49.5]} 9. O-O {[%clk 0:03:02.5]} 9... Bxd6 {[%clk 0:02:49]}
10. d4 {[%clk 0:03:02.6]} 10... Bg4 {[%clk 0:02:18.7]} 11. h3 {[%clk 0:02:41.4]}
11... Bxf3 {[%clk 0:01:56.6]} 12. Qxf3 {[%clk 0:02:40.2]} 12... O-O {[%clk
0:01:54.2]} 13. dxe5 {[%clk 0:02:28.7]} 13... Nxe5 {[%clk 0:01:46.8]} 14. Qxb7
{[%clk 0:02:26.3]} 14... f5 {[%clk 0:01:32]} 15. Nd2 {[%clk 0:01:42.2]} 15... a5
{[%clk 0:01:19]} 16. f4 {[%clk 0:01:10.3]} 16... Rf7 {[%clk 0:01:16]} 17. Qxa8
{[%clk 0:01:05.9]} 17... Qxa8 {[%clk 0:01:16]} 18. fxe5 {[%clk 0:01:06.8]} 18...
Bxe5 {[%clk 0:01:13.8]} 19. Bxf5 {[%clk 0:01:00.7]} 19... Qd5 {[%clk 0:01:09.4]}
20. Bc2 {[%clk 0:00:34.3]} 20... Qc5+ {[%clk 0:01:04]} 21. Kh1 {[%clk 0:00:33]}
21... Rxf1+ {[%clk 0:00:59.4]} 22. Nxf1 {[%clk 0:00:33.9]} 22... Qf2 {[%clk
0:00:59.6]} 23. Bd2 {[%clk 0:00:28.4]} 23... Nd5 {[%clk 0:00:56.5]} 24. Be4
{[%clk 0:00:19.9]} 24... Nf4 {[%clk 0:00:52.5]} 25. Bxf4 {[%clk 0:00:16.8]}
25... Bxf4 {[%clk 0:00:49.8]} 26. Bd5+ {[%clk 0:00:16.6]} 26... Kf8 {[%clk
0:00:48.1]} 27. Bxc4 {[%clk 0:00:16.7]} 27... Qxb2 {[%clk 0:00:47.5]} 28. Rd1
{[%clk 0:00:15.2]} 28... Qxc3 {[%clk 0:00:47.6]} 29. Bd5 {[%clk 0:00:14.8]}
29... a4 {[%clk 0:00:45.4]} 30. Nh2 {[%clk 0:00:12.9]} 30... g5 {[%clk
0:00:36.8]} 31. Ng4 {[%clk 0:00:10]} 31... h5 {[%clk 0:00:33.6]} 32. Nh6 {[%clk
0:00:10]} 32... Qg3 {[%clk 0:00:31.8]} 33. Kg1 {[%clk 0:00:08.4]} 33... Be3+
{[%clk 0:00:21.7]} 34. Kh1 {[%clk 0:00:08.7]} 34... Qf2 {[%clk 0:00:20]} 35. Bc4
{[%clk 0:00:07.3]} 35... Qc2 {[%clk 0:00:19.8]} 36. Rf1+ {[%clk 0:00:07.4]}
36... Bf4 {[%clk 0:00:16.8]} 37. Bd5 {[%clk 0:00:05.8]} 37... Kg7 {[%clk
0:00:14.9]} 38. Nf7 {[%clk 0:00:04.8]} 38... Qd3 {[%clk 0:00:15.2]} 39. Re1
{[%clk 0:00:03.6]} 39... Qxd5 {[%clk 0:00:15]} 0-1

[Event "Early-Titled-Tuesday-Blitz-March-12-2024"]
[Site "Chess.com"]
[Date "2024.03.12"]
[Round "5"]
[White "Ginger_GM"]
[Black "chito89"]
[Result "1-0"]
[WhiteElo "2596"]
[BlackElo "2829"]
[TimeControl "180+1"]
[EndTime "8:55:26 PDT"]
[Termination "Ginger_GM won on time"]

1. d4 {[%clk 0:03:00.9]} 1... c5 {[%clk 0:02:55.3]} 2. d5 {[%clk 0:02:58.4]}
2... g6 {[%clk 0:02:55.2]} 3. Nc3 {[%clk 0:02:57.4]} 3... Bg7 {[%clk 0:02:49.7]}
4. e4 {[%clk 0:02:57.2]} 4... d6 {[%clk 0:02:39.6]} 5. Bb5+ {[%clk 0:02:56.8]}
5... Nd7 {[%clk 0:02:36.8]} 6. a4 {[%clk 0:02:54.5]} 6... a6 {[%clk 0:02:36.4]}
7. Be2 {[%clk 0:02:54.1]} 7... Ngf6 {[%clk 0:02:35.5]} 8. Nf3 {[%clk 0:02:53.4]}
8... O-O {[%clk 0:02:36]} 9. O-O {[%clk 0:02:51.5]} 9... Ne8 {[%clk 0:02:36.5]}
10. Bf4 {[%clk 0:02:49.6]} 10... Nc7 {[%clk 0:02:31.8]} 11. Qd2 {[%clk
0:02:48.6]} 11... Rb8 {[%clk 0:02:26.6]} 12. Bh6 {[%clk 0:02:46.4]} 12... b5
{[%clk 0:02:23.9]} 13. axb5 {[%clk 0:02:46.4]} 13... axb5 {[%clk 0:02:15.4]} 14.
Bxg7 {[%clk 0:02:37.7]} 14... Kxg7 {[%clk 0:02:16.3]} 15. Nd1 {[%clk 0:02:35.2]}
15... f6 {[%clk 0:02:11.6]} 16. Ne3 {[%clk 0:02:26.7]} 16... Ne5 {[%clk
0:02:09.1]} 17. Nxe5 {[%clk 0:02:26.1]} 17... fxe5 {[%clk 0:02:10]} 18. Bg4
{[%clk 0:02:16.6]} 18... h5 {[%clk 0:01:50.1]} 19. Bxc8 {[%clk 0:02:16]} 19...
Qxc8 {[%clk 0:01:51]} 20. Ra7 {[%clk 0:02:14.2]} 20... Rf7 {[%clk 0:01:51]} 21.
Rfa1 {[%clk 0:02:07.4]} 21... Ne8 {[%clk 0:01:48.4]} 22. Qa5 {[%clk 0:01:52.1]}
22... c4 {[%clk 0:01:43.2]} 23. c3 {[%clk 0:01:25.1]} 23... Nf6 {[%clk
0:01:18.7]} 24. Rc7 {[%clk 0:01:15.5]} 24... Qd8 {[%clk 0:01:19]} 25. f3 {[%clk
0:01:14.5]} 25... Ra8 {[%clk 0:01:18]} 26. Qxa8 {[%clk 0:01:08.6]} 26... Qxc7
{[%clk 0:01:18.4]} 27. Qa7 {[%clk 0:01:08.7]} 27... Qc8 {[%clk 0:01:07.4]} 28.
Ra6 {[%clk 0:01:06]} 28... e6 {[%clk 0:00:53.5]} 29. Qb6 {[%clk 0:00:57.8]}
29... exd5 {[%clk 0:00:53.4]} 30. exd5 {[%clk 0:00:51.9]} 30... Ne8 {[%clk
0:00:24.8]} 31. Qc6 {[%clk 0:00:46.5]} 31... Qd8 {[%clk 0:00:24.9]} 32. Ra8
{[%clk 0:00:45.6]} 32... Qg5 {[%clk 0:00:25]} 33. Kf2 {[%clk 0:00:44.5]} 33...
Qh4+ {[%clk 0:00:23]} 34. Ke2 {[%clk 0:00:41.6]} 34... Nf6 {[%clk 0:00:20.2]}
35. Qxd6 {[%clk 0:00:41.3]} 35... e4 {[%clk 0:00:10.3]} 36. Qg3 {[%clk
0:00:36.1]} 36... exf3+ {[%clk 0:00:10.2]} 37. gxf3 {[%clk 0:00:36.3]} 37...
Qxg3 {[%clk 0:00:06.8]} 38. hxg3 {[%clk 0:00:37.2]} 38... Re7 {[%clk 0:00:05.3]}
39. Kf2 {[%clk 0:00:34.9]} 39... Rd7 {[%clk 0:00:04.3]} 40. Rb8 {[%clk
0:00:33.3]} 40... Nxd5 {[%clk 0:00:04.8]} 41. Rxb5 {[%clk 0:00:33.5]} 41... Nxe3
{[%clk 0:00:01.6]} 42. Kxe3 {[%clk 0:00:34.4]} 42... Rd3+ {[%clk 0:00:01.9]} 43.
Ke2 {[%clk 0:00:34.3]} 43... Rd7 {[%clk 0:00:01.4]} 44. Rb4 {[%clk 0:00:30]}
44... Rc7 {[%clk 0:00:01.8]} 45. Ke3 {[%clk 0:00:30.4]} 45... g5 {[%clk
0:00:02.1]} 46. Ke4 {[%clk 0:00:28.6]} 1-0

[Event "Early-Titled-Tuesday-Blitz-March-12-2024"]
[Site "Chess.com"]
[Date "2024.03.12"]
[Round "5"]
[White "Roman_Ovetchkin"]
[Black "ASKA538"]
[Result "1-0"]
[WhiteElo "2595"]
[BlackElo "2260"]
[TimeControl "180+1"]
[EndTime "8:55:26 PDT"]
[Termination "Roman_Ovetchkin won by resignation"]

1. d4 {[%clk 0:03:00.9]} 1... Nf6 {[%clk 0:02:59.5]} 2. c4 {[%clk 0:02:59.9]}
2... g6 {[%clk 0:02:59.6]} 3. Nc3 {[%clk 0:02:57.4]} 3... Bg7 {[%clk 0:02:59.7]}
4. e4 {[%clk 0:02:56.6]} 4... d6 {[%clk 0:02:59.6]} 5. h3 {[%clk 0:02:56.5]}
5... O-O {[%clk 0:02:54.3]} 6. Bg5 {[%clk 0:02:55.1]} 6... c5 {[%clk 0:02:50.9]}
7. d5 {[%clk 0:02:54.4]} 7... a6 {[%clk 0:02:49.7]} 8. a4 {[%clk 0:02:53.5]}
8... h6 {[%clk 0:02:47.5]} 9. Be3 {[%clk 0:02:51.4]} 9... e6 {[%clk 0:02:45.5]}
10. Bd3 {[%clk 0:02:47.6]} 10... exd5 {[%clk 0:02:44.1]} 11. exd5 {[%clk
0:02:47.8]} 11... Re8 {[%clk 0:02:44]} 12. Nf3 {[%clk 0:02:43.2]} 12... b6
{[%clk 0:02:38]} 13. O-O {[%clk 0:02:41.3]} 13... Ra7 {[%clk 0:02:37.7]} 14. Qd2
{[%clk 0:02:41.3]} 14... Kh7 {[%clk 0:02:36.3]} 15. Rfe1 {[%clk 0:02:12.7]}
15... Rae7 {[%clk 0:02:31.2]} 16. Bf4 {[%clk 0:02:06.4]} 16... Qc7 {[%clk
0:02:25.7]} 17. g4 {[%clk 0:01:59.9]} 17... Nbd7 {[%clk 0:02:14.7]} 18. Kg2
{[%clk 0:01:58.9]} 18... Ng8 {[%clk 0:01:25.9]} 19. Rxe7 {[%clk 0:01:41.7]}
19... Rxe7 {[%clk 0:01:20.5]} 20. Re1 {[%clk 0:01:42.1]} 20... Ne5 {[%clk
0:00:38.6]} 21. Nxe5 {[%clk 0:01:39]} 21... dxe5 {[%clk 0:00:39.5]} 22. Bg3
{[%clk 0:01:29.3]} 22... Qd8 {[%clk 0:00:33.1]} 23. f3 {[%clk 0:01:26.6]} 23...
f5 {[%clk 0:00:31.4]} 24. Qc2 {[%clk 0:01:10.6]} 24... Qf8 {[%clk 0:00:28.3]}
25. a5 {[%clk 0:00:44.2]} 25... bxa5 {[%clk 0:00:24.7]} 26. Na4 {[%clk
0:00:42.5]} 26... e4 {[%clk 0:00:24]} 27. fxe4 {[%clk 0:00:41.4]} 27... fxg4
{[%clk 0:00:24.3]} 28. hxg4 {[%clk 0:00:39.8]} 28... Bxg4 {[%clk 0:00:23.7]} 29.
Rf1 {[%clk 0:00:38.7]} 29... Qe8 {[%clk 0:00:22.1]} 30. Nxc5 {[%clk 0:00:36.2]}
30... Bd4 {[%clk 0:00:19.8]} 31. Nb3 {[%clk 0:00:33.3]} 31... Be5 {[%clk
0:00:20.1]} 32. Bxe5 {[%clk 0:00:31.3]} 32... Rxe5 {[%clk 0:00:21]} 33. Qf2
{[%clk 0:00:30.9]} 33... Rg5 {[%clk 0:00:20.6]} 34. Qf7+ {[%clk 0:00:30.8]}
34... Qxf7 {[%clk 0:00:21.1]} 35. Rxf7+ {[%clk 0:00:31.4]} 35... Kh8 {[%clk
0:00:21.8]} 36. Kf2 {[%clk 0:00:32]} 36... h5 {[%clk 0:00:21.3]} 37. c5 {[%clk
0:00:31.8]} 37... h4 {[%clk 0:00:20.9]} 38. Nd4 {[%clk 0:00:25.4]} 38... h3
{[%clk 0:00:21.3]} 39. Nf3 {[%clk 0:00:25.7]} 39... Bxf3 {[%clk 0:00:21.7]} 40.
Rxf3 {[%clk 0:00:25]} 40... Rh5 {[%clk 0:00:21.8]} 41. Kg1 {[%clk 0:00:25.3]}
41... Nh6 {[%clk 0:00:22.1]} 42. c6 {[%clk 0:00:23]} 42... h2+ {[%clk
0:00:22.4]} 43. Kh1 {[%clk 0:00:23]} 43... Ng4 {[%clk 0:00:21.9]} 44. c7 {[%clk
0:00:23.2]} 1-0

[Event "Early-Titled-Tuesday-Blitz-March-12-2024"]
[Site "Chess.com"]
[Date "2024.03.12"]
[Round "5"]
[White "blitzking1729"]
[Black "Oleksandr_Bortnyk"]
[Result "0-1"]
[WhiteElo "2808"]
[BlackElo "3010"]
[TimeControl "180+1"]
[EndTime "8:55:27 PDT"]
[Termination "Oleksandr_Bortnyk won by resignation"]

1. c4 {[%clk 0:03:00.9]} 1... Nf6 {[%clk 0:02:56.8]} 2. Nc3 {[%clk 0:02:53.4]}
2... g6 {[%clk 0:02:50.8]} 3. g3 {[%clk 0:02:52.2]} 3... Bg7 {[%clk 0:02:50.9]}
4. Bg2 {[%clk 0:02:52.9]} 4... O-O {[%clk 0:02:50.3]} 5. d4 {[%clk 0:02:53.6]}
5... d6 {[%clk 0:02:50.1]} 6. Nf3 {[%clk 0:02:53.9]} 6... c6 {[%clk 0:02:49.7]}
7. e4 {[%clk 0:02:53.1]} 7... Be6 {[%clk 0:02:49.4]} 8. b3 {[%clk 0:02:50.2]}
8... Qa5 {[%clk 0:02:43.9]} 9. Bd2 {[%clk 0:02:48.7]} 9... Re8 {[%clk
0:02:34.9]} 10. O-O {[%clk 0:02:47.8]} 10... Qh5 {[%clk 0:02:34.6]} 11. Ng5
{[%clk 0:02:47.1]} 11... Qxd1 {[%clk 0:02:32.4]} 12. Raxd1 {[%clk 0:02:46.5]}
12... Bg4 {[%clk 0:02:25.8]} 13. f3 {[%clk 0:02:45.6]} 13... Bc8 {[%clk
0:02:25.8]} 14. e5 {[%clk 0:02:45.6]} 14... Nfd7 {[%clk 0:02:11.7]} 15. f4
{[%clk 0:02:31.4]} 15... h6 {[%clk 0:02:06.8]} 16. Nge4 {[%clk 0:02:28.1]} 16...
dxe5 {[%clk 0:02:05.7]} 17. fxe5 {[%clk 0:02:21.1]} 17... Nf8 {[%clk 0:02:03.4]}
18. Be3 {[%clk 0:02:09]} 18... Na6 {[%clk 0:01:58.7]} 19. Rd2 {[%clk 0:02:03.6]}
19... f5 {[%clk 0:01:51.2]} 20. exf6 {[%clk 0:02:01.5]} 20... exf6 {[%clk
0:01:52.1]} 21. Bxh6 {[%clk 0:01:19.7]} 21... Bxh6 {[%clk 0:01:41.7]} 22. Nxf6+
{[%clk 0:01:19.3]} 22... Kf7 {[%clk 0:01:33.7]} 23. Nxe8+ {[%clk 0:01:11.6]}
23... Kxe8 {[%clk 0:01:34.6]} 24. Re2+ {[%clk 0:01:11.5]} 24... Kd8 {[%clk
0:01:31.8]} 25. Ne4 {[%clk 0:01:08]} 25... Bg4 {[%clk 0:01:30.5]} 26. Ree1
{[%clk 0:01:00]} 26... Nb4 {[%clk 0:01:22.7]} 27. Nd6 {[%clk 0:00:52]} 27... Kc7
{[%clk 0:01:13.8]} 28. Re7+ {[%clk 0:00:40]} 28... Kxd6 {[%clk 0:01:07]} 29.
Rxb7 {[%clk 0:00:38.6]} 29... Be3+ {[%clk 0:01:02.2]} 30. Kh1 {[%clk 0:00:37.3]}
30... Nd3 {[%clk 0:00:49.5]} 31. Rf6+ {[%clk 0:00:30.8]} 31... Ne6 {[%clk
0:00:48.7]} 32. c5+ {[%clk 0:00:28]} 32... Nxc5 {[%clk 0:00:49]} 33. dxc5+
{[%clk 0:00:28]} 33... Bxc5 {[%clk 0:00:40.5]} 34. Rxg6 {[%clk 0:00:28.1]} 34...
Bf5 {[%clk 0:00:39.7]} 35. Rh6 {[%clk 0:00:24.5]} 35... Rd8 {[%clk 0:00:34.6]}
36. h3 {[%clk 0:00:23.6]} 36... Ke5 {[%clk 0:00:33.1]} 37. g4 {[%clk 0:00:23.2]}
37... Rd1+ {[%clk 0:00:33.4]} 38. Kh2 {[%clk 0:00:23.3]} 38... Bg1+ {[%clk
0:00:34.3]} 39. Kg3 {[%clk 0:00:23.1]} 39... Rd3+ {[%clk 0:00:34.9]} 40. Bf3
{[%clk 0:00:23.2]} 40... Be4 {[%clk 0:00:32.3]} 41. Kg2 {[%clk 0:00:23]} 41...
Bxf3+ {[%clk 0:00:28.2]} 42. Kxg1 {[%clk 0:00:23.4]} 42... Nc5 {[%clk 0:00:27]}
43. Rf7 {[%clk 0:00:15.3]} 43... Ne4 {[%clk 0:00:24.2]} 44. Rf5+ {[%clk
0:00:11.5]} 44... Kd4 {[%clk 0:00:21.3]} 45. Rxc6 {[%clk 0:00:12]} 45... Rd1+
{[%clk 0:00:21.4]} 0-1

[Event "Early-Titled-Tuesday-Blitz-March-12-2024"]
[Site "Chess.com"]
[Date "2024.03.12"]
[Round "5"]
[White "Veleamater"]
[Black "Boundless_Strike"]
[Result "1/2-1/2"]
[WhiteElo "2317"]
[BlackElo "2609"]
[TimeControl "180+1"]
[EndTime "8:55:30 PDT"]
[Termination "Game drawn by repetition"]

1. g3 {[%clk 0:03:00.9]} 1... e5 {[%clk 0:01:32.3]} 2. Bg2 {[%clk 0:03:01.8]}
2... d6 {[%clk 0:01:24.2]} 3. d3 {[%clk 0:03:02.7]} 3... f5 {[%clk 0:01:23.6]}
4. Nc3 {[%clk 0:03:02.1]} 4... Nf6 {[%clk 0:01:23]} 5. e4 {[%clk 0:03:01.1]}
5... fxe4 {[%clk 0:01:22.8]} 6. dxe4 {[%clk 0:03:00.9]} 6... Be7 {[%clk
0:01:21.9]} 7. h3 {[%clk 0:03:01.4]} 7... O-O {[%clk 0:01:21.9]} 8. f4 {[%clk
0:03:01.5]} 8... exf4 {[%clk 0:01:20]} 9. gxf4 {[%clk 0:03:01.5]} 9... Nfd7
{[%clk 0:01:12.7]} 10. Nf3 {[%clk 0:02:53.4]} 10... Bh4+ {[%clk 0:01:12.1]} 11.
Nxh4 {[%clk 0:02:52.8]} 11... Qxh4+ {[%clk 0:01:11.9]} 12. Kf1 {[%clk 0:02:53]}
12... Nc6 {[%clk 0:01:04.8]} 13. Qg4 {[%clk 0:02:39.7]} 13... Qf6 {[%clk
0:00:57.4]} 14. Be3 {[%clk 0:02:29.2]} 14... Nde5 {[%clk 0:00:46]} 15. Qg3
{[%clk 0:02:28.4]} 15... Nc4 {[%clk 0:00:43.6]} 16. Re1 {[%clk 0:02:23.4]} 16...
Nxe3+ {[%clk 0:00:40.7]} 17. Rxe3 {[%clk 0:02:21.7]} 17... Qxf4+ {[%clk
0:00:40.6]} 18. Qxf4 {[%clk 0:02:21.5]} 18... Rxf4+ {[%clk 0:00:41.5]} 19. Kg1
{[%clk 0:02:20.3]} 19... Be6 {[%clk 0:00:39]} 20. Kh2 {[%clk 0:02:18.3]} 20...
Raf8 {[%clk 0:00:34.5]} 21. Nb5 {[%clk 0:02:00.1]} 21... R8f7 {[%clk 0:00:28.6]}
22. c3 {[%clk 0:01:41.1]} 22... Rf2 {[%clk 0:00:23.9]} 23. Nd4 {[%clk
0:01:36.2]} 23... Nxd4 {[%clk 0:00:20.7]} 24. cxd4 {[%clk 0:01:36.3]} 24... Rxb2
{[%clk 0:00:21.5]} 25. Rc1 {[%clk 0:01:33.9]} 25... Rff2 {[%clk 0:00:16.6]} 26.
Rg3 {[%clk 0:01:33.8]} 26... c6 {[%clk 0:00:14]} 27. a3 {[%clk 0:01:30.7]} 27...
h6 {[%clk 0:00:08.1]} 28. Kg1 {[%clk 0:01:30.5]} 28... Rfd2 {[%clk 0:00:07.7]}
29. d5 {[%clk 0:01:25.6]} 29... Bd7 {[%clk 0:00:07.6]} 30. Re1 {[%clk
0:01:18.8]} 30... Rbc2 {[%clk 0:00:04.5]} 31. e5 {[%clk 0:01:16.1]} 31... dxe5
{[%clk 0:00:04.6]} 32. Rxe5 {[%clk 0:01:15.8]} 32... cxd5 {[%clk 0:00:05]} 33.
Re7 {[%clk 0:01:15.7]} 33... Bc6 {[%clk 0:00:01.8]} 34. Rgxg7+ {[%clk
0:01:15.4]} 34... Kf8 {[%clk 0:00:02.3]} 35. Rgf7+ {[%clk 0:01:11.1]} 35... Kg8
{[%clk 0:00:02.4]} 36. Rg7+ {[%clk 0:00:39.7]} 36... Kf8 {[%clk 0:00:02.4]} 37.
Rgf7+ {[%clk 0:00:12.9]} 37... Kg8 {[%clk 0:00:02.9]} 38. Rg7+ {[%clk
0:00:12.2]} 1/2-1/2